bitfinex-derivatives/quotes_SOLF0:USTF0_20251202
["timestamp","ask_amount","ask_price","bid_price","bid_amount"]
[1764674950624,3.26240327,128.03,128.01,2.9]
[1764674951319,0.05240327,128.03,128.02,9.9306]
[1764674951928,3.26240327,128.03,128.02,7.0306]
[1764674952423,3.26240327,128.03,128.0,69.08643475]
[1764674952620,3.26240327,128.03,128.0,9.98643475]
[1764674955118,3.26240327,128.03,128.0,2.95503475]
[1764674955725,3.26240327,128.03,128.0,9.98643475]
[1764674956825,0.05240327,128.03,128.02,9.9306]
[1764674963942,0.05240327,128.03,128.02,76.8506]
[1764674966432,3.26240327,128.03,128.0,0.05503475]
[1764674967138,3.21,128.01,128.0,0.05503475]
[1764674968329,10.2411,128.01,128.0,0.05503475]
[1764674971134,3.21,127.99,127.96,2.9]
[1764674971739,3.21,127.99,127.96,9.9338]
[1764674972146,3.26211346,127.99,127.96,9.98622133]
[1764674972446,0.05211346,127.99,127.97,2.88]
[1764674972744,0.05211346,127.99,127.96,7.08622133]
[1764674972745,0.05211346,127.99,127.98,9.9128]
[1764674975256,3.19,128.05,128.01,2.83]
[1764674976245,3.19,128.07,128.02,2.83]
[1764674976446,0.05006111,128.04,128.02,2.88323401]
[1764674976749,0.05919395,128.04,128.02,2.88607859]
[1764674977248,0.05919395,128.04,128.03,2.83]
[1764674979843,0.05919395,128.04,128.03,69.75]
[1764674980153,3.3,128.1,128.06,2.78]
[1764674980947,3.35515824,128.09,128.07,0.05540663]
[1764674983346,7.08215824,128.09,128.07,0.05540663]
[1764674983551,3.3,128.08,128.07,0.05540663]
[1764674984357,7.08215824,128.09,128.07,0.05540663]
[1764674984358,10.38215824,128.09,128.07,2.83540663]
[1764674985354,10.38215824,128.09,128.07,0.05540663]
[1764674987257,3.3,128.08,128.07,0.05540663]
[1764674993963,3.35515824,128.09,128.07,2.83540663]
[1764674994561,0.05515824,128.09,128.07,9.86300663]
[1764674994958,0.05515824,128.09,128.08,2.78]
[1764674996056,0.05515824,128.09,128.08,9.8073]
[1764674996268,3.3,128.16,128.09,2.78]
[1764674996654,10.323,128.16,128.11,7.0251]
[1764674996862,3.3,128.15,128.11,9.8051]
[1764674997362,3.34960617,128.14,128.12,0.05753335]
[1764675000767,0.04960617,128.14,128.13,2.78]
[1764675001662,109.2172,128.2,128.12,9.08163409]
[1764675001663,3.3,128.18,128.15,2.78]
[1764675001857,3.3,128.18,128.14,9.8037]
[1764675002559,0.0520591,128.17,128.15,0.05684336]
[1764675002858,3.3520591,128.17,128.15,9.86004336]
[1764675003761,3.3520591,128.17,128.15,7.08004336]
[1764675003961,3.3,128.15,128.09,114.14140074]
[1764675004155,3.3,128.15,128.1,2.84]
[1764675004761,3.3,128.14,128.1,2.84]
[1764675005067,3.3514762,128.13,128.11,0.04980758]
[1764675006465,3.3514762,128.13,128.11,7.07530758]
[1764675006765,3.3514762,128.13,128.11,9.91530758]
[1764675006970,0.0514762,128.13,128.11,9.91530758]
[1764675007362,0.0514762,128.13,128.12,2.84]
[1764675007763,3.3514762,128.13,128.11,7.07530758]
[1764675010168,3.3,128.13,128.12,2.84]
[1764675010470,1.99940074,128.15,128.11,3.26980758]
[1764675010669,1.99940074,128.15,128.09,3.22]
[1764675011173,1.99940074,128.15,128.0,127.61545504]
[1764675011174,1.99940074,128.11,128.03,3.22]
[1764675011370,1.99940074,128.07,128.03,3.22]
[1764675011575,1.99940074,128.07,128.06,0.05887835]
[1764675012170,0.05742654,128.08,128.06,0.05887835]
[1764675012374,3.19,128.07,128.06,0.05887835]
[1764675016468,0.05742654,128.08,128.06,0.05887835]
[1764675016666,0.05742654,128.08,128.06,3.27887835]
[1764675017575,3.24742654,128.08,128.06,0.05887835]
[1764675024176,0.05742654,128.08,128.06,3.27887835]
[1764675024378,0.05742654,128.08,128.07,5.21940074]
[1764675024879,3.19,128.11,128.09,3.22]
[1764675025075,7.0251,128.13,128.09,5.21940074]
[1764675025378,3.19,128.12,128.09,3.22]
[1764675025566,3.19,128.12,128.1,1.99940074]
[1764675025770,3.19,128.14,128.1,5.21940074]
[1764675025983,3.24274,128.13,128.11,0.05420122]
[1764675028182,0.05274,128.13,128.12,3.22]
[1764675028482,0.05274,128.13,128.12,5.21940074]
[1764675032383,0.05274,128.13,128.12,12.24450074]
[1764675033279,0.05274,128.13,128.12,10.2451]
[1764675033475,0.05274,128.13,128.12,7.0251]
[1764675033677,3.13274,128.13,128.11,0.05420122]
[1764675034080,3.13274,128.13,128.11,3.20420122]
[1764675034375,0.05274,128.13,128.12,3.15]
[1764675034881,0.05274,128.13,128.12,10.1751]
[1764675035682,0.05274,128.13,128.12,7.0251]
[1764675035982,3.13274,128.13,128.11,0.05420122]
[1764675036376,3.13274,128.13,128.11,3.20420122]
[1764675037381,0.05274,128.13,128.12,3.15]
[1764675038190,0.05274,128.13,128.12,10.1751]
[1764675038377,3.08,128.19,128.13,3.15]
[1764675038578,3.08,128.19,128.14,3.08]
[1764675038978,3.16,128.17,128.14,3.08]
[1764675039386,3.20995906,128.17,128.14,3.13858597]
[1764675039689,3.20995906,128.17,128.14,10.16238597]
[1764675039885,0.04995906,128.17,128.15,5.07940074]
[1764675040074,0.04995906,128.17,128.16,3.08]
[1764675040280,0.04995906,128.17,128.15,5.07940074]
[1764675040890,0.04995906,128.17,128.15,12.10260074]
[1764675041686,0.04995906,128.17,128.14,10.16258597]
[1764675041687,3.16,128.16,128.14,10.16258597]
[1764675041882,3.20995906,128.17,128.15,3.08]
[1764675042290,3.20995906,128.17,128.15,10.1034]
[1764675044586,0.04995906,128.17,128.15,10.1034]
[1764675045087,0.04995906,128.17,128.16,10.1029]
[1764675047288,0.04995906,128.17,128.16,7.0229]
[1764675047596,3.20995906,128.17,128.15,7.0229]
[1764675048584,3.20995906,128.17,128.15,10.1029]
[1764675048987,0.04995906,128.17,128.15,10.1029]
[1764675049996,3.16,128.16,128.14,0.05858597]
[1764675050493,3.16,128.12,128.09,3.08]
[1764675050697,3.16,128.12,128.08,5.07940074]
[1764675050897,3.16,128.12,128.09,3.08]
[1764675051493,10.24038705,128.12,128.09,3.13325604]
[1764675052393,3.16,128.11,128.09,3.13325604]
[1764675052596,3.16,128.11,128.09,0.05325604]
[1764675054287,7.0262,128.1,128.09,0.05325604]
[1764675054496,10.1862,128.1,128.09,0.05325604]
[1764675054995,3.16,128.06,127.99,3.08]
[1764675055195,3.16,128.05,127.99,26.58964192]
[1764675055395,3.16,128.05,127.99,3.08]
[1764675055600,10.1893,128.05,127.99,3.08]
[1764675055898,3.16,128.05,127.99,3.08]
[1764675056298,0.05907919,128.03,128.01,0.05274779]
[1764675056700,3.21907919,128.03,128.01,0.05274779]
[1764675058996,10.24927919,128.03,128.01,0.05274779]
[1764675059193,3.16,128.02,128.01,0.05274779]
[1764675059392,3.16,128.02,127.97,3.08]
[1764675059701,3.16,128.01,127.94,3.08]
[1764675060391,0.05666106,127.99,127.96,0.05582039]
[1764675060592,0.05666106,127.99,127.97,3.08]
[1764675062602,0.05666106,127.99,127.97,10.113]
[1764675062810,0.05666106,127.99,127.98,3.08]
[1764675063394,10.1896,128.04,127.99,3.08]
[1764675064515,10.1896,128.04,128.0,3.08]
[1764675064806,3.21396467,128.03,128.0,3.13470469]
[1764675065506,3.21396467,128.03,128.0,0.05470469]
[1764675065712,3.16,128.02,128.0,0.05470469]
[1764675067407,10.1907,128.02,128.0,0.05470469]
[1764675068802,3.35,128.01,128.0,0.05470469]
[1764675076604,3.35,128.01,127.94,26.9186764]
[1764675076802,3.35,128.01,127.95,3.36]
[1764675077511,0.05083148,127.99,127.97,3.41401472]
[1764675078505,0.05083148,127.99,127.98,10.3928]
[1764675079107,3.35,128.04,128.01,3.36]
[1764675079308,3.35,128.07,128.01,3.36]
[1764675079610,3.35,128.07,128.03,3.36]
[1764675080114,10.3784,128.06,128.03,3.36]
[1764675080316,10.43406575,128.06,128.04,0.05504899]
[1764675081504,0.05566575,128.06,128.04,3.41504899]
[1764675083313,0.05566575,128.06,128.05,7.0289]
[1764675083506,0.05566575,128.06,128.05,10.3889]
[1764675092413,3.35,128.14,128.07,10.3876]
[1764675092915,3.08,128.1,128.03,3.35]
[1764675093122,3.08,128.1,128.03,70.27]
[1764675093522,3.1362547,128.08,128.05,0.05500056]
[1764675094222,3.1362547,128.08,128.05,3.40500056]
[1764675096828,3.1362547,128.08,128.06,3.35]
[1764675098129,3.1362547,128.08,128.05,3.40500056]
[1764675100631,3.39,128.07,128.05,0.05500056]
[1764675101131,10.4184,128.06,128.05,0.05500056]
[1764675104827,3.39,128.04,127.99,62.0]
[1764675105129,3.39,128.04,127.97,3.4]
[1764675105324,3.39,128.01,127.98,10.4325]
[1764675105724,3.44046751,128.01,127.98,10.48780298]
[1764675106323,3.44046751,128.01,127.98,7.08780298]
[1764675107231,3.44046751,128.01,127.98,10.48780298]
[1764675108929,3.44046751,128.01,127.98,0.05530298]
[1764675108930,3.39,128.0,127.98,0.05530298]
[1764675110831,7.0322,127.99,127.98,0.05530298]
[1764675111032,3.44046751,128.01,127.98,3.45530298]
[1764675112335,10.47156751,128.01,127.98,3.45530298]
[1764675114034,3.44046751,128.01,127.98,3.45530298]
[1764675115233,10.47166751,128.01,127.98,3.45530298]
[1764675116438,0.05046751,128.01,127.98,3.45530298]
[1764675116629,0.05046751,128.01,127.98,66.97530298]
[1764675116835,0.05046751,128.01,127.99,3.4]
[1764675117837,3.44046751,128.01,127.98,0.05530298]
[1764675118235,3.44046751,128.01,127.98,3.45530298]
[1764675119344,7.0318,128.0,127.98,3.45530298]
[1764675121639,0.05046751,128.01,127.99,3.4]
[1764675122432,0.05046751,128.01,128.0,3.4]
[1764675124142,0.05046751,128.01,128.0,10.4317]
[1764675125949,10.4194,128.05,128.03,3.4]
[1764675125950,3.39,128.05,128.03,3.4]
[1764675127042,3.45010101,128.05,128.03,0.05020822]
[1764675128345,3.39,128.04,128.03,0.05020822]
[1764675129049,3.16010101,128.05,128.03,3.16020822]
[1764675131751,3.16010101,128.05,128.03,10.19020822]
[1764675131953,0.06010101,128.05,128.03,10.19020822]
[1764675132147,3.16010101,128.05,128.03,3.16020822]
[1764675132350,3.16010101,128.05,128.03,0.05020822]
[1764675133651,3.1,128.03,127.96,3.11]
[1764675134351,10.1314,128.01,127.97,3.11]
[1764675134851,0.05936383,128.0,127.98,3.1622354]
[1764675135642,0.05936383,128.0,127.99,3.11]
[1764675137154,0.05936383,128.0,127.99,10.1422]
[1764675138651,0.05936383,128.0,127.99,77.0622]
[1764675139152,66.9,128.06,128.01,7.0307]
[1764675139356,3.1,128.06,128.02,3.11]
[1764675140249,3.15829911,128.05,128.03,0.05405805]
[1764675141351,3.15829911,128.05,128.03,3.16405805]
[1764675147365,0.05829911,128.05,128.03,3.16405805]
[1764675150756,3.1,128.04,128.03,0.05405805]
[1764675152256,10.1295,128.04,128.03,0.05405805]
[1764675153550,11.6895,128.04,128.03,0.05405805]
[1764675156867,10.1295,128.04,128.03,0.05405805]
[1764675167976,2.06278153,128.05,127.96,68.88448242]
[1764675167977,3.4,128.01,127.98,7.0327]
[1764675168578,3.4,128.01,127.98,10.3227]
[1764675168878,3.45061792,128.01,127.98,10.37936933]
[1764675169069,3.45061792,128.01,127.98,7.08936933]
[1764675169274,3.45061792,128.01,127.99,3.29]
[1764675173979,10.48181792,128.01,127.99,3.29]
[1764675177286,10.4318,128.0,127.98,0.05666933]
[1764675177478,3.4,128.0,127.98,0.05666933]
[1764675177887,3.4,128.0,127.98,3.34666933]
[1764675178589,7.0322,127.99,127.98,3.34666933]
[1764675181191,7.08201792,128.01,127.98,3.34666933]
[1764675181387,0.05061792,128.01,127.98,3.34666933]
[1764675182191,0.05061792,128.01,128.0,3.29]
[1764675183495,0.05061792,128.01,128.0,10.3217]
[1764675184185,0.05061792,128.01,128.0,11.8817]
[1764675185286,0.05061792,128.01,128.0,10.3217]
[1764675187091,7.0296,128.04,128.02,3.29]
[1764675187891,10.4286,128.06,128.03,3.29]
[1764675188092,10.47809026,128.06,128.03,3.34583187]
[1764675189805,7.07809026,128.06,128.03,3.34583187]
[1764675190096,10.18809026,128.06,128.03,3.34583187]
[1764675190304,3.15949026,128.06,128.04,3.3]
[1764675190803,0.04949026,128.06,128.04,3.3]
[1764675191003,3.15949026,128.06,128.03,3.35583187]
[1764675191198,3.15949026,128.06,128.03,0.05583187]
[1764675191504,3.15949026,128.06,128.03,3.35583187]
[1764675191702,7.0289,128.05,128.03,3.35583187]
[1764675191903,3.11,128.05,128.03,3.35583187]
[1764675193803,3.11,128.05,128.03,0.05583187]
[1764675195296,3.11,128.05,128.03,3.35583187]
[1764675197104,3.11,128.05,128.03,0.05583187]
[1764675199303,3.11,128.05,128.03,3.35583187]
[1764675200099,0.04949026,128.06,128.03,3.35583187]
[1764675200100,3.15949026,128.06,128.03,3.35583187]
[1764675200811,0.04949026,128.06,128.05,3.3]
[1764675201507,0.04949026,128.06,128.05,10.3289]
[1764675204412,0.04949026,128.06,128.05,72.3289]
[1764675207308,10.1357,128.11,128.08,3.3]
[1764675207602,3.11,128.1,128.08,3.3]
[1764675208515,3.16746418,128.1,128.08,3.35205745]
[1764675209214,0.05746418,128.1,128.08,10.37905745]
[1764675209515,0.05746418,128.1,128.09,3.3]
[1764675210316,0.05746418,128.1,128.09,10.3267]
[1764675211315,3.16746418,128.1,128.08,66.85205745]
[1764675211516,3.16746418,128.1,128.08,0.05205745]
[1764675211911,10.1367,128.09,128.08,0.05205745]
[1764675214410,3.11,128.07,128.02,3.3]
[1764675214815,3.11,128.07,128.03,3.3]
[1764675215017,3.11,128.1,128.03,3.3]
[1764675215418,3.16606946,128.08,128.05,3.34939287]
[1764675215813,0.05606946,128.08,128.05,3.34939287]
[1764675216120,0.05606946,128.08,128.07,10.3278]
[1764675217210,3.11,128.12,128.08,3.3]
[1764675218116,0.05518733,128.11,128.09,3.30208947]
[1764675225924,0.05518733,128.11,128.09,10.32878947]
[1764675226128,0.05518733,128.11,128.1,3.3]
[1764675228326,3.31518733,128.11,128.09,10.37878947]
[1764675236126,3.31518733,128.11,128.09,7.07878947]
[1764675236527,3.31518733,128.11,128.09,0.05208947]
[1764675236727,3.31518733,128.11,128.09,3.35208947]
[1764675237733,3.31518733,128.11,128.09,10.37878947]
[1764675238939,0.05518733,128.11,128.1,3.3]
[1764675241440,0.05518733,128.11,128.1,10.3262]
[1764675241633,10.2834,128.16,128.11,3.3]
[1764675242633,0.05672315,128.15,128.13,3.3]
[1764675243644,3.31672315,128.15,128.13,3.3]
[1764675243845,3.31672315,128.15,128.13,27.08124138]
[1764675245352,3.26,128.14,128.12,10.37646682]
[1764675246040,3.26,128.14,128.12,7.07646682]
[1764675246242,3.26,128.14,128.12,10.37646682]
[1764675246543,3.26,128.14,128.12,3.35156682]
[1764675248347,10.2841,128.14,128.12,0.05156682]
[1764675248551,3.26,128.14,128.12,0.05156682]
[1764675248754,1.99941316,128.13,128.08,3.4]
[1764675248946,3.22,128.12,128.08,3.4]
[1764675249850,0.05310703,128.11,128.09,3.44951377]
[1764675250051,7.07890703,128.11,128.09,3.44951377]
[1764675250344,0.05310703,128.11,128.1,3.4]
[1764675250851,0.05310703,128.11,128.1,10.4262]
[1764675252143,3.22,128.16,128.12,7.0249]
[1764675252344,3.22,128.16,128.13,3.4]
[1764675252846,1.02875,128.18,128.14,3.4]
[1764675253045,4.24875,128.18,128.14,3.4]
[1764675253247,0.05847316,128.17,128.15,3.45383844]
[1764675253649,3.27847316,128.17,128.15,0.05383844]
[1764675256449,3.22,128.16,128.15,0.05383844]
[1764675257455,10.2429,128.16,128.15,0.05383844]
[1764675257653,5.21941316,128.16,128.11,3.4]
[1764675257856,3.22,128.15,128.11,3.4]
[1764675258559,10.2444,128.14,128.11,3.4]
[1764675258751,10.29600386,128.14,128.11,3.4542692]
[1764675259757,3.22,128.13,128.11,3.4542692]
[1764675263951,3.3,128.12,128.11,0.0542692]
[1764675264162,5.29941316,128.12,128.11,0.0542692]
[1764675264461,3.3,128.11,128.06,3.3]
[1764675265350,10.38428772,128.1,128.07,3.35496217]
[1764675269467,3.3,128.09,128.07,3.35496217]
[1764675272465,3.3,128.09,128.07,0.05496217]
[1764675273064,3.3,128.07,128.0,3.3]
[1764675273367,3.3,128.05,128.0,3.3]
[1764675273771,3.3,128.05,128.02,3.3]
[1764675274071,0.05535641,128.05,128.02,3.35997755]
[1764675274372,0.05535641,128.05,128.04,3.3]
[1764675275169,7.0261,128.11,128.05,3.3]
[1764675275467,5.29941316,128.13,128.06,65.3]
[1764675275674,3.3,128.13,128.07,3.3]
[1764675276060,0.0596371,128.11,128.09,3.35144288]
[1764675276268,3.3596371,128.11,128.09,0.05144288]
[1764675278071,0.0596371,128.11,128.09,10.37804288]
[1764675278276,0.0596371,128.11,128.1,3.41]
[1764675278475,0.0596371,128.11,128.09,10.48804288]
[1764675280470,0.0596371,128.11,128.1,3.17]
[1764675282574,0.0596371,128.11,128.1,10.1962]
[1764675283778,0.0596371,128.11,128.1,76.9762]
[1764675284278,0.0596371,128.11,128.1,78.97561316]
[1764675286079,0.0596371,128.11,128.1,7.0262]
[1764675286476,0.0596371,128.11,128.1,10.1962]
[1764675286885,0.0596371,128.11,128.09,3.22144288]
[1764675287185,3.2596371,128.11,128.09,3.22144288]
[1764675291688,0.0596371,128.11,128.09,3.22144288]
[1764675291875,0.0596371,128.11,128.09,10.24814288]
[1764675292076,0.0596371,128.11,128.1,3.17]
[1764675294994,0.0596371,128.11,128.1,10.1962]
[1764675296696,0.0596371,128.11,128.1,3.17]
[1764675297396,0.0596371,128.11,128.1,10.1962]
[1764675299899,10.2235,128.15,128.12,3.17]
[1764675300801,7.08289088,128.15,128.13,3.17]
[1764675301304,3.2,128.14,128.12,0.05535523]
[1764675305207,10.2242,128.14,128.12,0.05535523]
[1764675305410,3.2,128.13,128.12,0.05535523]
[1764675307106,3.2,128.12,128.06,65.17]
[1764675307315,3.2,128.12,128.03,3.17]
[1764675308109,3.2,128.07,128.06,0.05431506]
[1764675309306,10.2278,128.07,128.06,0.05431506]
[1764675309508,10.1578,128.07,128.06,0.05431506]
[1764675312316,3.13,128.07,128.06,0.05431506]
[1764675314312,10.1578,128.07,128.06,0.05431506]
[1764675319410,0.05736473,128.09,128.03,3.08]
[1764675319411,10.1592,128.05,128.03,3.08]
[1764675319615,10.1592,128.05,128.02,23.51349663]
[1764675319616,3.13,128.04,128.02,23.51349663]
[1764675319822,3.13,128.04,128.0,3.08]
[1764675320018,3.13,128.02,127.98,3.08]
[1764675320425,3.18318621,128.01,127.99,0.05489593]
[1764675322727,0.05318621,128.01,127.99,3.13489593]
[1764675323333,3.18318621,128.01,127.99,3.13489593]
[1764675323932,0.05318621,128.01,127.99,3.13489593]
[1764675325633,0.05318621,128.01,128.0,3.08]
[1764675328636,0.05318621,128.01,128.0,10.1117]
[1764675331435,3.18318621,128.01,127.99,3.13489593]
[1764675332029,3.18318621,128.01,127.99,0.05489593]
[1764675332831,0.05318621,128.01,127.99,3.13489593]
[1764675333933,0.05318621,128.01,127.99,10.16709593]
[1764675334140,0.05318621,128.01,128.0,3.08]
[1764675335142,0.05318621,128.01,127.99,10.16709593]
[1764675335442,3.18318621,128.01,127.99,0.05489593]
[1764675335645,3.13,128.0,127.99,0.05489593]
[1764675338242,3.13,128.0,127.95,7.0341]
[1764675338433,109.361,128.03,127.95,10.1141]
[1764675338434,3.13,127.99,127.95,10.1141]
[1764675338838,3.34,127.98,127.95,3.08]
[1764675339348,3.39038082,127.98,127.95,3.13415368]
[1764675339948,10.42318082,127.98,127.95,3.13415368]
[1764675340843,10.42318082,127.98,127.95,10.16845368]
[1764675341549,0.05038082,127.98,127.96,3.21]
[1764675342044,0.05038082,127.98,127.97,66.82]
[1764675342238,176.1198,128.08,127.98,3.21]
[1764675342239,3.4,128.04,127.98,3.21]
[1764675342439,3.4,128.04,127.99,3.21]
[1764675343234,0.04972044,128.03,128.01,10.2411]
[1764675343440,0.04972044,128.03,128.02,3.21]
[1764675344349,0.04972044,128.03,128.02,10.2406]
[1764675349847,10.428,128.07,128.04,3.21]
[1764675350241,3.4,128.09,128.04,3.21]
[1764675350744,3.4,128.09,128.05,3.21]
[1764675350949,3.45584207,128.08,128.05,3.26180179]
[1764675351150,3.45584207,128.08,128.05,3.26447425]
[1764675354556,3.45584207,128.08,128.05,0.05447425]
[1764675355456,3.4,128.06,128.05,0.05447425]
[1764675357158,10.4284,128.06,128.05,0.05447425]
[1764675360158,3.4,128.06,128.05,0.05447425]
[1764675360755,10.4284,128.06,128.05,0.05447425]
[1764675365663,3.4,128.04,128.01,3.21]
[1764675365864,3.4,128.03,127.96,3.21]
[1764675366159,3.4,127.99,127.96,10.2437]
[1764675366351,3.4,127.99,127.96,7.0337]
[1764675366557,3.4,127.99,127.94,3.21]
[1764675366758,3.45069756,127.98,127.95,0.05201044]
[1764675367157,3.45069756,127.98,127.95,3.26201044]
[1764675368058,3.45069756,127.98,127.95,0.05201044]
[1764675368468,10.48359756,127.98,127.95,0.05201044]
[1764675368670,5.1828051,127.97,127.95,0.05201044]
[1764675368970,3.18,127.96,127.95,0.05201044]
[1764675370465,10.2139,127.96,127.95,0.05201044]
[1764675375067,3.18,127.97,127.95,0.05201044]
[1764675375270,3.23069756,127.98,127.95,0.05201044]
[1764675376272,3.18,127.96,127.95,0.05201044]
[1764675377360,3.18,127.94,127.91,3.38]
[1764675378364,3.23871993,127.94,127.91,3.43917519]
[1764675380078,10.27381993,127.94,127.91,3.43917519]
[1764675380267,3.18,127.93,127.91,0.05917519]
[1764675381368,3.18,127.92,127.91,0.05917519]
[1764675382472,10.2161,127.92,127.91,0.05917519]
[1764675387277,7.0361,127.92,127.91,3.43917519]
[1764675387479,3.23871993,127.94,127.91,3.43917519]
[1764675387480,10.27391993,127.94,127.91,3.43917519]
[1764675387778,0.05871993,127.94,127.91,3.43917519]
[1764675388870,0.05871993,127.94,127.93,3.38]
[1764675389778,0.05871993,127.94,127.92,3.38]
[1764675394377,0.05871993,127.94,127.93,3.13]
[1764675394768,3.11,128.0,127.95,3.13]
[1764675395976,0.05703137,127.99,127.97,3.13]
[1764675396371,3.16703137,127.99,127.97,3.13]
[1764675399180,0.05703137,127.99,127.97,10.1632]
[1764675399387,0.05703137,127.99,127.98,3.4]
[1764675399884,77.2899,128.04,127.99,3.4]
[1764675400091,3.4,128.03,127.99,3.4]
[1764675400486,10.43,128.03,127.99,10.432]
[1764675400683,10.43,128.03,128.0,3.4]
[1764675400982,10.4851658,128.03,128.0,3.45996604]
[1764675401180,3.4551658,128.03,128.0,3.45996604]
[1764675408691,3.4551658,128.03,128.0,10.49146604]
[1764675408987,0.0551658,128.03,128.01,3.4]
[1764675409688,0.0551658,128.03,128.02,3.4]
[1764675410395,0.0551658,128.03,128.02,10.4306]
[1764675412888,3.4551658,128.03,128.02,3.4]
[1764675413191,3.4551658,128.03,128.0,0.05996604]
[1764675413390,10.4852658,128.03,128.0,0.05996604]
[1764675413587,3.4,128.02,128.0,0.05996604]
[1764675414495,3.4,128.01,128.0,0.05996604]
[1764675416198,10.4311,128.01,128.0,0.05996604]
[1764675416591,2.0579709,128.03,128.0,3.45996604]
[1764675416592,0.0551658,128.03,128.0,3.45996604]
[1764675416792,3.4,128.14,128.07,3.4]
[1764675416996,3.4,128.14,128.1,3.4]
[1764675417388,3.4,128.14,128.09,2.0028051]
[1764675417389,2.0028051,128.15,128.0,123.4391]
[1764675417593,2.0028051,128.15,128.07,3.4]
[1764675417594,3.4,128.12,128.07,3.4]
[1764675417901,3.4,128.1,128.08,0.0523093]
[1764675419201,10.4262,128.1,128.08,0.0523093]
[1764675421199,0.05818039,128.11,128.08,3.4523093]
[1764675421601,3.45818039,128.11,128.08,0.0523093]
[1764675422106,3.4,128.1,128.08,0.0523093]
[1764675423303,10.4263,128.1,128.08,0.0523093]
[1764675423491,3.4,128.09,128.08,0.0523093]
[1764675424806,3.45818039,128.11,128.08,3.4523093]
[1764675425002,0.05818039,128.11,128.08,3.4523093]
[1764675425891,0.05818039,128.11,128.09,10.4266]
[1764675426098,3.45818039,128.11,128.08,0.0523093]
[1764675430606,3.17,128.1,128.08,0.0523093]
[1764675433409,3.17,128.1,128.08,7.0796093]
[1764675433597,0.05818039,128.11,128.09,3.27]
[1764675434307,0.05818039,128.11,128.09,10.2962]
[1764675436810,0.05818039,128.11,128.1,10.2962]
[1764675439910,0.05818039,128.11,128.09,3.27]
[1764675440110,3.22818039,128.11,128.08,77.2493093]
[1764675440805,3.22818039,128.11,128.09,7.0263]
[1764675448712,3.22818039,128.11,128.08,0.0523093]
[1764675450217,3.17,128.09,128.08,0.0523093]
[1764675450615,3.17,128.07,128.02,10.3005]
[1764675450924,3.17,128.07,127.99,109.3891]
[1764675450925,3.17,128.07,128.03,3.27]
[1764675451727,3.22992342,128.06,128.04,0.05196435]
[1764675452527,10.25842342,128.06,128.04,0.05196435]
[1764675452927,3.22992342,128.06,128.04,0.05196435]
[1764675453814,0.05992342,128.06,128.04,3.32196435]
[1764675454429,0.05992342,128.06,128.04,10.35136435]
[1764675454730,0.05992342,128.06,128.05,3.27]
[1764675459932,0.05992342,128.06,128.05,10.2989]
[1764675469735,3.46992342,128.06,128.04,0.05196435]
[1764675470442,3.46992342,128.06,128.04,3.32196435]
[1764675472836,0.05992342,128.06,128.04,3.32196435]
[1764675473042,3.46992342,128.06,128.04,3.32196435]
[1764675477142,3.46992342,128.06,128.01,3.27]
[1764675477445,3.41,128.06,128.02,3.27]
[1764675478231,3.46378712,128.05,128.03,3.32822218]
[1764675478443,3.46824362,128.05,128.03,3.32822218]
[1764675479449,3.46824362,128.05,128.03,10.35822218]
[1764675482848,3.46824362,128.05,128.03,0.05822218]
[1764675484551,10.4395,128.04,128.03,0.05822218]
[1764675488251,3.41,128.04,128.03,0.05822218]
[1764675493262,3.24,128.03,127.99,7.0319]
[1764675493462,3.24,128.03,127.98,3.38]
[1764675493670,3.24,128.07,128.0,3.38]
[1764675494055,3.24,128.05,128.02,10.4105]
[1764675494252,3.24,128.08,128.03,3.38]
[1764675494557,66.84,128.09,128.03,3.38]
[1764675494558,0.05707524,128.05,128.03,3.38]
[1764675494758,0.05707524,128.05,128.03,3.43834165]
[1764675495360,0.05707524,128.05,128.03,10.46834165]
[1764675495656,0.05707524,128.05,128.04,3.38]